bitfinex-derivatives/quotes_BNBF0:USTF0_20250424
["timestamp","ask_amount","ask_price","bid_price","bid_amount"]
[1745487951221,0.29156351,597.92,596.01,0.97455618]
[1745487951522,1.27462458,597.83,596.02,0.30786772]
[1745487953725,0.29157572,597.82,596.02,0.30786772]
[1745487955329,1.27462458,597.83,596.02,0.30786772]
[1745487955928,1.27462458,597.83,596.01,0.683]
[1745487956127,1.27462458,597.83,596.03,0.30786334]
[1745487956426,1.27462458,597.83,596.04,0.30786334]
[1745487956728,0.29157572,597.82,596.05,0.30786334]
[1745487956926,0.29157572,597.82,596.06,0.30786334]
[1745487957126,0.29157572,597.82,596.07,0.30786334]
[1745487957324,0.29157572,597.82,596.03,0.30786334]
[1745487958328,1.27462458,597.91,596.03,0.30786334]
[1745487958526,1.27462458,597.91,596.02,0.30786334]
[1745487958724,0.29156473,597.81,596.03,0.30786334]
[1745487958929,1.27462458,597.91,596.02,0.29156473]
[1745487959128,1.27462458,597.91,596.03,0.30786335]
[1745487959731,0.29156473,597.9,596.03,0.30786335]
[1745487960136,1.27462458,597.84,596.07,1.06555623]
[1745487960629,1.27462458,597.84,596.08,0.30786944]
[1745487961930,0.29156717,597.83,596.08,0.30786944]
[1745487962931,1.27462458,597.82,596.08,0.30786944]
[1745487963133,1.27462458,597.82,596.09,0.30786974]
[1745487963325,1.27462458,597.82,596.08,0.30786974]
[1745487964532,1.27462458,597.82,596.07,1.06555623]
[1745487964728,1.27462458,597.82,596.08,0.30786944]
[1745487965632,0.29156229,597.81,596.08,0.30786944]
[1745487966034,0.29156229,597.81,596.07,1.06555623]
[1745487966235,0.29156229,597.81,596.08,0.30786408]
[1745487966534,1.27462458,597.76,596.1,1.06555623]
[1745487966728,1.27462458,597.76,596.11,0.30786408]
[1745487968735,0.29156595,597.75,596.11,0.30786408]
[1745487969131,0.29156595,597.75,596.09,0.892]
[1745487969331,0.29156595,597.75,596.1,0.30786426]
[1745487970339,0.893,597.93,596.1,0.30786426]
[1745487971237,0.893,597.93,596.11,0.695]
[1745487971437,0.893,597.93,596.12,0.30786426]
[1745487971741,0.29154885,597.92,596.12,0.30786426]
[1745487972237,0.29154885,597.92,596.11,0.695]
[1745487972439,0.29154885,597.92,596.13,0.657]
[1745487972734,0.29154885,597.92,596.14,0.30786752]
[1745487973340,0.893,597.93,596.14,0.30786752]
[1745487974034,1.27462458,598.07,596.14,0.30786752]
[1745487974635,0.29152931,598.06,596.14,0.30786752]
[1745487975337,0.29152931,598.06,596.13,0.657]
[1745487975533,0.29152931,598.06,596.15,0.30786653]
[1745487975738,0.29152931,598.06,596.16,0.30786653]
[1745487975935,0.29152931,598.06,596.14,0.30786653]
[1745487976139,0.29152931,598.06,596.15,0.30786653]
[1745487976342,1.27462458,598.08,596.14,0.30786653]
[1745487976537,2.30662458,598.08,596.14,0.30786653]
[1745487977746,0.29153786,598.07,596.14,0.30786653]
[1745487978246,1.27462458,597.81,596.13,0.94853786]
[1745487978443,1.27462458,597.81,596.14,0.30787763]
[1745487979846,0.29157084,597.8,596.13,0.657]
[1745487980046,0.29157084,597.8,596.14,0.30786035]
[1745487981349,0.29157084,597.8,596.13,0.94857084]
[1745487981647,0.29157084,597.8,596.14,0.30786144]
[1745487982350,1.032,598.08,596.14,0.30786144]
[1745487983654,1.27462458,598.05,596.14,0.30786144]
[1745487983853,1.27462458,598.05,596.13,0.657]
[1745487986055,0.2916026,598.04,596.13,0.657]
[1745487987156,1.27462458,597.57,596.13,0.657]
[1745487988656,0.29169548,597.56,596.13,0.657]
[1745487991355,1.27462458,597.74,596.14,0.68]
[1745487992354,1.27462458,597.95,596.14,0.68]
[1745487992756,0.29164537,597.94,596.14,0.68]
[1745487994358,1.27462458,597.95,596.14,0.68]
[1745487994759,1.27462458,597.95,596.15,0.894]
[1745487995156,1.27462458,597.97,596.15,0.894]
[1745487995854,0.29161726,597.96,596.15,0.894]
[1745487996156,1.025,597.95,596.15,0.894]
[1745487998763,0.2916197,597.94,596.15,0.894]
[1745487999763,0.2916197,597.94,596.15,1.681]
[1745488000162,1.27462458,597.84,596.15,1.681]
[1745488003666,1.27462458,597.69,596.15,1.681]
[1745488005460,1.27462458,597.69,596.15,2.497]
[1745488005963,0.29163315,597.83,596.15,2.497]
[1745488005964,1.27462458,597.68,596.15,2.497]
[1745488006562,0.2916527,597.67,596.15,2.497]
[1745488010376,1.27462458,597.66,596.15,2.497]
[1745488010671,0.2916307,597.65,596.15,2.497]
[1745488011277,1.034,597.64,596.15,2.497]
[1745488012676,0.29163315,597.63,596.15,2.497]
[1745488012977,0.29163315,597.63,596.15,3.281]
[1745488015374,1.034,597.64,596.15,3.281]
[1745488015878,0.29163315,597.62,596.15,3.281]
[1745488018481,1.034,597.64,596.15,3.281]
[1745488018875,1.034,597.64,596.16,0.30798233]
[1745488019881,0.29163315,597.63,596.16,0.30798233]
[1745488020181,0.29163315,597.63,596.17,0.30798558]
[1745488020381,0.29163315,597.63,596.15,1.6]
[1745488020382,0.29163315,597.63,596.16,0.30798558]
[1745488020680,0.29163315,597.63,596.17,0.30798558]
[1745488020877,0.29163315,597.63,596.18,0.30798558]
[1745488021082,0.29163315,597.63,596.16,0.30798558]
[1745488021280,0.29163315,597.63,596.17,0.30798558]
[1745488021481,0.29163315,597.63,596.18,0.30798558]
[1745488021681,0.29163315,597.63,596.19,0.30798558]
[1745488021882,0.29163315,597.63,596.2,0.30798558]
[1745488022081,1.27462458,597.42,596.16,0.30798558]
[1745488022277,1.27462458,597.42,596.15,1.6]
[1745488022476,1.27462458,597.42,596.16,0.3079904]
[1745488022881,1.27462458,597.42,596.16,1.0049904]
[1745488023081,1.27462458,597.42,596.17,0.3079904]
[1745488024682,0.29165881,597.41,596.17,0.3079904]
[1745488025684,0.29165881,597.41,596.16,0.697]
[1745488025881,0.29165881,597.41,596.17,0.30798829]
[1745488026284,0.29165881,597.41,596.16,0.697]
[1745488026678,0.29165881,597.41,596.16,1.573]
[1745488027181,0.29165881,597.41,596.16,0.876]
[1745488027378,1.27462458,597.46,596.16,0.876]
[1745488027685,0.29163681,597.4,596.16,0.876]
[1745488028484,0.29163681,597.4,596.17,0.30792215]
[1745488028686,0.29163681,597.4,596.16,0.876]
[1745488028985,0.29163681,597.4,596.17,0.30792238]
[1745488030383,1.034,597.64,596.17,0.30792238]
[1745488031086,1.034,597.64,596.17,1.13292238]
[1745488031286,1.034,597.64,596.18,0.30792238]
[1745488031690,0.29159893,597.63,596.18,0.30792238]
[1745488036484,1.27462458,597.97,596.19,0.30778099]
[1745488036784,1.27462458,597.97,596.2,1.15078099]
[1745488036988,1.27462458,597.97,596.21,0.30778099]
[1745488037689,0.291511,597.96,596.21,0.30778099]
[1745488039384,0.291511,597.96,596.22,0.699]
[1745488039592,0.724,597.95,596.23,0.30781739]
[1745488040790,0.291511,597.94,596.23,0.30781739]
[1745488042394,0.724,597.95,596.23,0.30781739]
[1745488042587,0.724,597.95,596.22,0.699]
[1745488042788,0.29154763,597.93,596.22,0.699]
[1745488045396,0.724,597.95,596.23,0.30787836]
[1745488045593,0.724,597.95,596.22,0.699]
[1745488045996,0.724,597.95,596.23,0.30787547]
[1745488046296,0.724,597.95,596.22,0.699]
[1745488046496,0.724,597.95,596.23,0.30788291]
[1745488046701,0.29153542,597.94,596.23,0.30788291]
[1745488047301,0.29153542,597.94,596.22,0.699]
[1745488047602,0.29153542,597.94,596.23,0.30788321]
[1745488048401,0.724,597.95,596.23,0.30788321]
[1745488048702,0.29153542,597.93,596.23,0.30788321]
[1745488049404,0.29153542,597.93,596.24,0.666]
[1745488049598,0.29153542,597.93,596.25,0.30788321]
[1745488049800,0.29153542,597.93,596.24,0.666]
[1745488051105,0.29153542,597.93,596.25,0.30787932]
[1745488051405,0.724,597.95,596.25,0.30787932]
[1745488051706,0.29153298,597.92,596.25,0.30787932]
[1745488052007,0.29153298,597.92,596.24,0.666]
[1745488052203,0.29153298,597.92,596.26,0.30787041]
[1745488052404,0.29153298,597.92,596.27,0.30787041]
[1745488052705,0.29153298,597.92,596.28,0.30787041]
[1745488052906,0.29153298,597.92,596.25,0.30787041]
[1745488053108,0.29153298,597.92,596.26,0.30787041]
[1745488053407,0.29153298,597.92,596.27,0.30787041]
[1745488053609,0.29153298,597.92,596.25,0.30787041]
[1745488053808,0.29153298,597.92,596.28,0.30787041]
[1745488054008,0.29153298,597.92,596.29,0.30787041]
[1745488054209,0.29153298,597.92,596.25,0.30787041]
[1745488054510,0.724,597.95,596.25,0.30787041]
[1745488055110,0.724,597.95,596.24,0.666]
[1745488055312,0.724,597.95,596.26,0.30782351]
[1745488055510,0.724,597.95,596.25,0.30782351]
[1745488055708,0.29151344,597.94,596.25,0.30782351]
[1745488057612,0.724,597.95,596.25,0.30782351]
[1745488058305,0.724,597.95,596.26,0.30782362]
[1745488058507,0.724,597.95,596.25,0.30782362]
[1745488058807,0.29151344,597.94,596.26,0.30782362]
[1745488059012,0.29151344,597.94,596.25,0.30782362]
[1745488059311,0.29151344,597.94,596.24,0.666]
[1745488059312,0.29151344,597.94,596.26,0.30782362]
[1745488059608,0.29151344,597.94,596.27,0.30782362]
[1745488059807,0.29151344,597.94,596.24,0.666]
[1745488060012,0.29151344,597.94,596.25,0.30782362]
[1745488060507,0.724,597.95,596.25,0.30782362]
[1745488060811,0.29151344,597.93,596.25,0.30782362]
[1745488063415,1.27462458,598.16,596.25,0.30782362]
[1745488064415,1.27462458,598.16,596.24,0.666]
[1745488064611,1.27462458,598.13,596.25,0.30782305]
[1745488065315,1.013,598.12,596.25,0.30782305]
[1745488069018,1.013,598.12,596.24,0.95748292]
[1745488069317,1.013,598.12,596.25,0.30777784]
[1745488070418,1.013,598.12,596.26,1.017]
[1745488070619,1.013,598.12,596.27,0.30777706]
[1745488070820,0.29147315,598.11,596.27,0.30777706]
[1745488071219,1.27462458,598.04,596.27,0.30777706]
[1745488073722,1.27462458,598.04,596.26,1.017]
[1745488073723,0.29146095,598.03,596.26,1.017]
[1745488073923,0.29146095,598.03,596.27,0.30775225]
[1745488075420,0.29146095,598.03,596.27,0.94375225]
[1745488075723,1.27462458,598.04,596.28,0.30775225]
[1745488076625,1.27462458,598.04,596.27,0.636]
[1745488076826,0.29145973,598.03,596.29,0.30775272]
[1745488077027,0.29145973,598.03,596.3,0.30775272]
[1745488077327,0.29145973,598.03,596.31,0.30775272]
[1745488077626,0.29145973,598.03,596.32,0.30775272]
[1745488077822,0.29145973,598.03,596.28,0.30775272]
[1745488078026,0.29145973,598.03,596.29,0.30775272]
[1745488078322,0.29145973,598.03,596.28,0.30775272]
[1745488078527,1.27462458,598.06,596.29,0.30775272]
[1745488078728,1.27462458,598.06,596.28,0.30775272]
[1745488078929,1.27462458,598.06,596.29,0.30775272]
[1745488079129,1.27462458,598.06,596.28,0.30775272]
[1745488079730,0.29145729,598.05,596.27,0.92745729]
[1745488080031,0.29145729,598.05,596.28,0.30774824]
[1745488081430,1.27462458,598.06,596.28,0.30774824]
[1745488081832,0.29144752,598.04,596.29,0.30774824]
[1745488082032,0.29144752,598.04,596.3,0.30774824]
[1745488082227,0.29144752,598.04,596.31,0.30774824]
[1745488082532,0.29144752,598.04,596.32,0.30774824]
[1745488082733,0.29144752,598.04,596.28,0.30774824]
[1745488083829,0.29144752,598.04,596.27,0.29144752]
[1745488084133,0.29144752,598.04,596.28,0.30773227]
[1745488084429,1.27462458,598.07,596.28,0.30773227]
[1745488084634,1.27462458,598.07,596.12,0.30773227]
[1745488084933,0.29146095,598.06,596.27,0.29146095]
[1745488085133,0.29146095,598.06,596.28,0.30773227]
[1745488085335,0.29146095,598.06,595.89,1.06555623]
[1745488085336,0.29146095,598.06,596.12,0.30773227]
[1745488085533,0.29146095,598.06,596.13,0.30773227]
[1745488085734,0.29146095,598.06,596.14,0.30773227]
[1745488085934,0.29146095,598.06,596.15,0.30773227]
[1745488086134,0.29146095,598.06,596.14,0.30773227]
[1745488086334,0.29146095,598.06,596.15,0.30773227]
[1745488086538,0.29146095,598.06,596.16,0.30773227]
[1745488086732,0.29146095,598.06,596.17,0.30773227]
[1745488086930,0.29146095,598.06,596.13,0.29141824]
[1745488087231,0.29146095,598.06,596.14,0.30773693]
[1745488087435,1.27462458,598.51,596.14,0.30773693]
[1745488087736,1.27462458,598.51,595.58,1.06555623]
[1745488087737,0.29140481,598.05,596.15,0.30773693]
[1745488087935,0.29140481,598.05,596.14,0.30773693]
[1745488088131,1.27462458,598.48,596.15,0.30773693]
[1745488088329,1.27462458,598.48,596.14,0.30773693]
[1745488088532,1.27462458,598.48,596.15,0.3077349]
[1745488088732,0.29140847,598.47,596.16,0.3077349]
[1745488089036,0.29140847,598.47,596.17,0.3077349]
[1745488089231,0.29140847,598.47,596.18,0.3077346]
[1745488089434,0.29140847,598.47,596.13,0.29140481]
[1745488089435,0.29140847,598.47,596.14,0.3077346]
[1745488089636,0.29140847,598.47,596.15,0.3077346]
[1745488089836,0.29140847,598.47,596.14,0.3077346]
[1745488090437,1.27462458,598.5,596.14,0.3077346]
[1745488090638,1.27462458,598.5,596.05,0.3077346]
[1745488090938,0.29140603,598.46,596.13,0.29140603]
[1745488091134,0.29140603,598.46,596.14,0.3077346]
[1745488091339,0.29140603,598.46,596.05,0.3077346]
[1745488091539,0.29140603,598.46,596.04,1.06555623]
[1745488091740,0.29140603,598.46,596.06,0.29144874]
[1745488092040,0.29140603,598.46,596.07,0.30779615]
[1745488093142,0.29140603,598.46,596.06,0.29144874]
[1745488093341,0.29140603,598.46,596.07,0.30780086]
[1745488093637,1.27462458,598.49,596.07,0.30780086]
[1745488093836,0.29145118,598.45,596.06,0.29145118]
[1745488094140,0.29145118,598.45,596.07,0.30780086]
[1745488094636,0.29145118,598.45,596.06,0.29145118]
[1745488094834,0.29145118,598.45,596.07,0.30780056]
[1745488095036,1.27462458,598.41,596.07,0.30780056]
[1745488096739,0.29145729,598.4,596.08,0.30780056]
[1745488096944,0.29145729,598.4,595.91,0.30780056]
[1745488097148,0.29145729,598.4,595.92,0.30780056]
[1745488097343,0.29145729,598.4,595.93,0.30780056]
[1745488097544,0.29145729,598.4,595.94,0.30780056]
[1745488097739,0.29145729,598.4,595.93,0.29147682]
[1745488097946,0.29145729,598.4,595.94,0.30779962]
[1745488098446,1.56608187,598.4,595.94,0.30779962]
[1745488098841,1.56608187,598.4,595.95,0.30779962]
[1745488099044,1.56608187,598.4,595.96,0.30779962]
[1745488099241,1.56608187,598.4,595.93,0.29147682]
[1745488099242,1.56608187,598.4,595.97,0.30779962]
[1745488099545,1.27462458,598.4,595.98,0.30779962]
[1745488099745,1.27462458,598.4,595.92,1.06555623]
[1745488099746,1.27462458,598.4,595.99,0.30779962]
[1745488099941,0.29147437,598.39,596.0,0.30779962]
[1745488100147,1.27462458,598.02,596.11,1.06555623]
[1745488100344,1.27462458,598.02,596.12,0.30779962]
[1745488102249,1.27462458,598.21,596.12,1.37335585]
[1745488102447,1.27462458,598.21,596.13,0.30779962]
[1745488103748,0.29145485,598.2,596.13,0.30779962]
[1745488103948,0.29145485,598.2,596.14,0.30775968]
[1745488104148,0.29145485,598.2,596.13,0.30775968]
[1745488104348,0.29145485,598.2,596.14,0.30775968]
[1745488104550,0.29145485,598.2,596.13,0.30775968]
[1745488104850,0.29145485,598.2,596.14,0.30775968]
[1745488105048,0.29145485,598.2,596.13,0.30775968]
[1745488105244,0.29145485,598.2,596.14,0.30775968]
[1745488105449,0.29145485,598.2,596.12,1.06555623]
[1745488105650,1.27462458,598.19,596.14,1.06555623]
[1745488105845,1.27462458,598.19,596.15,0.30775293]
[1745488106149,1.27462458,598.19,596.16,0.30773975]
[1745488106347,1.27462458,598.19,596.15,0.30773975]
[1745488106547,1.27462458,598.19,596.16,0.30773975]
[1745488106745,1.27462458,598.19,596.15,0.30773975]
[1745488106951,1.27462458,598.19,596.16,0.30773975]
[1745488107250,1.27462458,598.19,596.17,0.30773851]
[1745488107449,1.27462458,598.19,596.15,0.30773851]
[1745488107644,1.27462458,598.19,596.16,0.30773851]
[1745488107842,1.27462458,598.19,596.17,0.30773851]
[1745488108043,1.27462458,598.19,596.15,0.30773851]
[1745488108250,1.27462458,598.19,596.16,0.30773851]
[1745488108449,1.27462458,598.19,596.15,0.30773851]
[1745488108854,1.27462458,598.15,596.22,1.06555623]
[1745488109046,1.27462458,598.15,596.23,0.30773851]
[1745488109748,0.29143776,598.14,596.23,0.30773851]
[1745488110053,0.29143776,598.14,596.22,1.06555623]
[1745488110249,0.29143776,598.14,596.23,0.30774271]
[1745488110851,0.29143776,598.14,596.18,0.30774271]
[1745488111048,0.29143776,598.14,596.19,0.30774271]
[1745488111350,0.29143776,598.14,596.2,0.30774271]
[1745488111552,0.29143776,598.14,596.21,0.30774271]
[1745488111951,0.29143776,598.14,596.22,0.30774271]
[1745488112151,0.29143776,598.14,596.18,0.30774271]
[1745488113256,0.29143776,598.14,596.17,1.06555623]
[1745488113454,0.29143776,598.14,596.18,0.30774306]
[1745488113758,1.27462458,598.11,596.23,1.06555623]
[1745488113951,1.27462458,598.11,596.24,0.30774306]
[1745488114852,1.27462458,598.11,596.23,1.06555623]
[1745488114853,1.27462458,598.11,596.25,0.30774225]
[1745488115054,1.27462458,598.11,596.26,0.30774225]
[1745488115255,1.27462458,598.11,596.24,0.30774225]
[1745488115455,1.27462458,598.11,596.27,0.30774225]
[1745488115650,1.27462458,598.11,596.28,0.30774225]
[1745488115957,0.29144142,598.1,596.29,0.30774225]
[1745488116151,0.29144142,598.1,596.24,0.30774225]
[1745488116455,0.29144142,598.1,596.25,0.30774225]
[1745488116656,0.29144142,598.1,596.24,0.30774225]
[1745488116856,0.29144142,598.1,596.25,0.30774225]
[1745488117053,0.29144142,598.1,596.26,0.30774225]
[1745488117255,0.29144142,598.1,596.27,0.30774225]
[1745488117452,1.27462458,598.11,596.28,0.30774225]
[1745488117654,1.27462458,598.11,596.29,0.30774225]
[1745488117854,0.29144142,598.09,596.3,0.30774225]
[1745488118057,0.29144142,598.09,596.31,0.30774225]
[1745488118255,0.29144142,598.09,596.23,1.35699765]
[1745488118256,0.29144142,598.09,596.32,0.30774225]
[1745488118460,0.29144142,598.09,596.24,0.30774225]
[1745488118654,0.29144142,598.09,596.25,0.30774225]
[1745488118859,0.29144142,598.09,596.26,0.30774225]
[1745488119059,0.29144142,598.09,596.27,0.30774225]
[1745488119259,0.29144142,598.09,596.28,0.30774225]
[1745488119457,0.29144142,598.09,596.29,0.30774225]
[1745488119654,0.29144142,598.09,596.3,0.30774225]
[1745488119959,0.29144142,598.09,596.31,0.30774225]
[1745488120160,0.29144142,598.09,596.32,0.30774225]
[1745488120357,0.29144142,598.09,596.33,0.30774225]
[1745488120554,1.27462458,598.11,596.24,0.30774225]
[1745488120859,0.29144142,598.08,596.27,0.29144142]
[1745488121061,0.29144142,598.08,596.28,0.30774225]
[1745488123564,1.27462458,598.18,596.28,0.30774225]
[1745488123863,0.291428,598.07,596.29,0.30774225]
[1745488124063,0.291428,598.07,596.27,0.291428]
[1745488124064,1.27462458,598.2,596.27,0.291428]
[1745488124264,1.27462458,598.2,596.28,0.30774066]
[1745488124860,0.29142556,598.19,596.28,0.30774066]
[1745488125566,0.29142556,598.19,596.27,0.291428]
[1745488125767,0.29142556,598.19,596.28,0.30773855]
[1745488126468,1.27462458,598.2,596.28,0.30773855]
[1745488126766,1.27462458,598.2,596.29,0.30773855]
[1745488126967,1.27462458,598.2,596.21,0.30773855]
[1745488127169,1.27462458,598.2,596.2,1.06555623]
[1745488127370,1.27462458,598.19,596.21,1.37329356]
[1745488127664,1.27462458,598.19,596.22,0.30773733]
[1745488127869,1.56605868,598.19,596.22,0.30773733]
[1745488128666,1.56605868,598.19,596.21,1.35699033]
[1745488128864,1.56605868,598.19,596.22,0.30773482]
[1745488129469,1.27462458,598.19,596.22,0.30773482]
[1745488129969,1.27462458,598.19,596.23,0.30773482]
[1745488130171,1.27462458,598.17,596.24,0.30773482]
[1745488130469,1.27462458,598.17,596.25,0.30773451]
[1745488130666,1.27462458,598.17,596.24,0.30773451]
[1745488130871,0.2914341,598.16,596.25,0.30773451]
[1745488131071,0.2914341,598.16,596.24,0.30773451]
[1745488131767,0.2914341,598.16,596.23,1.06555623]
[1745488132070,0.2914341,598.16,596.24,0.30773701]
[1745488132266,0.2914341,598.16,596.25,0.30773701]
[1745488132466,0.2914341,598.16,596.26,0.30773701]
[1745488132667,1.27462458,598.01,596.31,1.06555623]
[1745488132865,1.27462458,598.01,596.32,0.30773701]
[1745488134866,1.27462458,598.01,596.31,1.06555623]
[1745488135065,1.27462458,598.01,596.32,0.30774166]
[1745488135270,1.27462458,597.98,596.33,1.06555623]
[1745488135571,1.27462458,597.98,596.34,0.30774166]
[1745488135771,0.29144508,597.97,596.34,0.30774166]
[1745488136472,0.29144508,597.97,596.33,1.06555623]
[1745488136672,0.29144508,597.97,596.34,0.30774]
[1745488138073,0.29144508,597.97,596.29,0.30774]
[1745488138473,1.27462458,598.13,596.29,0.30774]
[1745488138973,0.29143288,598.12,596.29,0.30774]
[1745488139570,0.29143288,598.12,596.28,1.06555623]
[1745488139775,0.29143288,598.12,596.29,0.30773736]
[1745488140478,1.27462458,598.09,596.29,0.30773736]
[1745488140673,1.27462458,598.09,596.31,1.06555623]
[1745488140975,1.27462458,598.09,596.32,0.30773863]
[1745488142175,1.27462458,598.09,596.31,1.06555623]
[1745488142373,1.27462458,598.09,596.32,0.30774075]
[1745488142571,1.27462458,598.11,596.32,0.30774075]
[1745488145274,1.27462458,598.15,596.32,0.30774075]
[1745488145479,1.27462458,598.15,596.33,0.30774075]
[1745488145675,1.27462458,598.15,596.34,0.30774075]
[1745488145870,0.29143654,598.14,596.35,0.30774075]
[1745488146177,0.29143654,598.14,596.36,0.30774075]
[1745488146377,0.29143654,598.14,596.3,0.30774075]
[1745488146577,0.29143654,598.14,596.31,0.30774075]
[1745488146780,0.29143654,598.14,596.3,0.30774075]
[1745488146973,0.29143654,598.14,596.31,0.30774075]
[1745488147273,0.29143654,598.14,596.32,0.30774075]
[1745488147472,0.29143654,598.14,596.3,0.30774075]
[1745488147673,0.29143654,598.14,596.31,0.30774075]
[1745488147878,0.29143654,598.14,596.3,0.30774075]
[1745488148077,0.29143654,598.14,596.31,0.30774075]
[1745488148379,1.27462458,598.01,596.34,1.06555623]
[1745488148580,1.27462458,598.01,596.35,0.30774075]
[1745488149777,1.27462458,598.01,596.34,1.06555623]
[1745488149982,1.27462458,598.01,596.35,0.30775315]
[1745488150281,1.27462458,598.01,596.34,1.06555623]
[1745488152285,1.27462458,598.01,596.32,1.06555623]
[1745488152480,1.27462458,598.0,596.32,1.06555623]
[1745488154786,0.2914756,597.99,596.32,1.06555623]
[1745488155386,0.2914756,597.99,596.33,0.30779042]
[1745488156384,0.2914756,597.99,596.34,0.30779042]
[1745488156588,1.27462458,598.53,596.31,0.30779042]
[1745488156887,1.27462458,598.53,596.32,0.30779042]
[1745488157183,1.27462458,598.53,596.33,0.30779042]
[1745488157389,1.27462458,598.53,596.34,0.30779042]
[1745488157583,1.27462458,598.53,595.93,0.30779042]
[1745488157786,0.29145973,598.52,596.31,0.29145973]
[1745488157984,0.29145973,598.52,596.32,0.30779042]
[1745488158188,0.29145973,598.52,595.93,0.30779042]
[1745488158487,0.29145973,598.52,595.94,0.30779042]
[1745488158691,1.27462458,598.34,596.03,1.06555623]
[1745488158890,1.27462458,598.34,596.04,0.30779042]
[1745488159493,1.27462458,598.34,596.05,0.29146949]
[1745488159793,1.27462458,598.34,596.06,0.30779042]
[1745488160693,0.29146705,598.33,596.06,0.30779042]
[1745488160888,1.27462458,598.08,596.12,1.06555623]
[1745488161088,1.27462458,598.08,596.13,0.30779042]
[1745488162293,1.27462458,598.08,596.12,1.06555623]
[1745488162588,1.27462458,598.08,596.13,0.30780448]
[1745488163688,0.29150489,598.07,596.13,0.30780448]
[1745488164095,1.27462458,598.05,596.13,0.30780448]
[1745488164295,1.27462458,598.05,596.1,1.06555623]
[1745488164995,1.27462458,598.05,596.11,0.30782989]
[1745488165288,1.27462458,598.05,596.12,0.30782989]
[1745488165490,1.27462458,598.05,596.13,0.30782989]
[1745488165795,1.27462458,598.05,596.14,0.30782807]
[1745488165995,1.27462458,598.05,596.11,0.30782807]
[1745488166197,1.27462458,598.05,596.15,0.30782807]
[1745488166494,1.27462458,598.05,596.1,1.06555623]
[1745488166793,0.291511,598.04,596.11,0.291511]
[1745488167298,1.27462458,597.82,596.13,1.06555623]
[1745488168299,1.27462458,597.82,596.16,0.3078191]
[1745488168491,1.27462458,597.82,596.14,0.3078191]
[1745488168692,1.27462458,597.82,596.15,0.3078191]
[1745488168896,1.27462458,597.82,596.14,0.3078191]
[1745488169100,1.27462458,597.82,596.13,1.06555623]
[1745488169398,1.56613558,598.04,596.14,0.30782039]
[1745488169600,1.56613558,598.04,596.12,0.30782039]
[1745488170700,1.56613558,598.04,596.11,0.291511]
[1745488170895,1.56613558,598.04,596.12,0.30782092]
[1745488171596,1.27462458,598.04,596.12,0.30782092]
[1745488171800,0.291511,598.03,596.11,0.291511]
[1745488172001,0.291511,598.03,596.12,0.30782092]
[1745488172300,0.291511,598.03,596.11,0.291511]
[1745488172601,0.291511,598.03,596.12,0.30782062]
[1745488174506,1.27462458,598.08,596.12,0.30782062]
[1745488174704,1.27462458,598.08,596.04,0.30782062]
[1745488174900,1.27462458,598.08,596.05,0.30782062]
[1745488175101,1.27462458,598.08,596.04,0.30782062]
[1745488175705,1.27462458,598.4,596.04,0.30782062]
[1745488175902,0.29150123,598.07,596.05,0.29150123]
[1745488176106,1.27462458,598.4,596.05,0.59932185]
[1745488176306,1.27462458,598.4,596.05,0.29150123]
[1745488176607,1.27462458,598.4,596.06,0.30782062]
[1745488177001,1.27462458,598.4,596.07,0.30779582]
[1745488177305,1.27462458,598.4,596.08,0.30779582]
[1745488177501,1.27462458,598.4,596.06,0.30779582]
[1745488177702,1.27462458,598.38,596.07,0.30779582]
[1745488177904,1.27462458,598.38,595.99,0.30779582]
[1745488178201,1.27462458,598.38,596.0,0.30779582]
[1745488178408,1.27462458,598.38,595.99,0.30779582]
[1745488178606,1.27462458,598.38,596.0,0.3077977]
[1745488178806,1.27462458,598.38,596.01,0.59926841]
[1745488179007,1.27462458,598.38,596.02,0.3077977]
[1745488180908,1.27462458,598.38,595.99,0.3077977]
[1745488181109,1.27462458,598.34,596.0,0.3077977]
[1745488181811,0.29147437,598.33,596.01,0.29147437]
[1745488182011,0.29147437,598.33,596.02,0.3077977]
[1745488183409,1.56609895,598.33,596.02,0.3077977]
[1745488183614,1.27462458,598.33,596.03,0.3077977]
[1745488183808,1.27462458,598.33,596.02,0.3077977]
[1745488184009,1.27462458,598.33,596.03,0.3077977]
[1745488184308,1.27462458,598.33,596.04,0.3077977]
[1745488184514,1.27462458,598.33,596.02,0.3077977]
[1745488184713,0.29147315,598.32,596.03,0.3077977]
[1745488184913,0.29147315,598.32,596.04,0.3077977]
[1745488185113,0.29147315,598.32,596.03,0.3077977]
[1745488185312,0.29147315,598.32,596.04,0.3077977]
[1745488185614,0.29147315,598.32,596.05,0.3077977]
[1745488185813,0.29147315,598.32,596.06,0.3077977]
[1745488186115,1.27462458,598.01,596.18,1.06555623]
[1745488186513,1.27462458,598.01,596.19,0.30778767]
[1745488187815,1.27462458,598.01,596.18,1.06555623]
[1745488188014,1.27462458,598.01,596.19,0.30779585]